fUST/lending_fUST_20241231
["ID","MTS","AMOUNT","RATE_DAILY","PERIOD"]
[347242295,1735614639843,-564.43,0.00019726,3]
[347242296,1735614639852,-1727.11,0.00019726,3]
[347242297,1735614639861,-625.76,0.00019726,3]
[347242298,1735614639871,-891.68,0.00019726,3]
[347242299,1735614639880,-926.79,0.00019726,3]
[347242300,1735614639890,-563.98,0.00019726,3]
[347242301,1735614639899,-817.27,0.00019726,3]
[347242302,1735614639908,-500.0,0.00019726,3]
[347242303,1735614639919,-3037.19,0.00019726,3]
[347242304,1735614639928,-500.0,0.00019726,3]
[347242305,1735614639938,-3085.77,0.00019726,3]
[347242306,1735614639948,-1000.0,0.00019726,2]
[347242307,1735614639957,-500.0,0.00019726,3]
[347242308,1735614639967,-500.0,0.00019726,3]
[347242309,1735614639976,-500.0,0.00019726,3]
[347242310,1735614639985,-500.0,0.00019726,3]
[347242311,1735614639995,-1299.91,0.00019726,3]
[347242312,1735614640004,-447.2338811,0.00019726,3]
[347242313,1735614640013,-1226.09,0.00019726,3]
[347242314,1735614640023,-2808.01,0.00019726,3]
[347242315,1735614640032,-737.85,0.00019726,3]
[347242316,1735614640041,-704.53,0.00019726,3]
[347242317,1735614640051,-500.0,0.00019726,3]
[347242318,1735614640061,-500.0,0.00019726,3]
[347242319,1735614640070,-1195.12,0.00019726,3]
[347242320,1735614640080,-1016.58,0.00019726,3]
[347242321,1735614640089,-159.65204355,0.00019864,2]
[347242323,1735614640101,-500.0,0.00019964,3]
[347242324,1735614640112,-500.0,0.00019964,3]
[347242326,1735614640121,-500.0,0.00019964,3]
[347242329,1735614640131,-509.78816325,0.00019964,3]
[347242332,1735614640141,-837.66,0.00019964,3]
[347242334,1735614640151,-500.0,0.00019964,3]
[347242336,1735614640160,-6897.56,0.00019964,3]
[347242337,1735614640169,-500.0,0.00019964,3]
[347242338,1735614640179,-500.0,0.00019964,3]
[347242339,1735614640188,-500.0,0.00019964,3]
[347242340,1735614640197,-500.0,0.00019964,3]
[347242341,1735614640206,-6897.56,0.00019965,3]
[347242342,1735614640215,-6897.56,0.00019965,3]
[347242343,1735614640225,-500.0,0.00019965,3]
[347242344,1735614640234,-537.54839231,0.00019966,3]
[347242345,1735614640243,-8028.04,0.00019966,3]
[347242346,1735614640252,-1430.37,0.00019966,3]
[347242347,1735614640261,-381.65332224,0.00019966,3]
[347242348,1735614640270,-500.0,0.00019966,3]
[347242349,1735614640280,-3559.66,0.00019967,3]
[347242350,1735614640290,-26027.15,0.00019999,3]
[347242351,1735614640300,-500.0,0.00019999,3]
[347242352,1735614640309,-500.0,0.0002,3]
[347242353,1735614640318,-151.0,0.0002,2]
[347242354,1735614640329,-500.0,0.0002,3]
[347242355,1735614640339,-1090.11,0.0002,3]
[347242356,1735614640349,-500.0,0.0002,3]
[347242357,1735614640358,-500.0,0.0002,3]
[347242358,1735614640368,-829.16,0.0002,3]
[347242359,1735614640378,-967.92,0.0002,3]
[347242360,1735614640388,-500.0,0.0002,3]
[347242361,1735614640397,-500.0,0.0002,3]
[347242362,1735614640407,-561.41,0.0002,3]
[347242363,1735614640417,-792.16,0.0002,3]
[347242364,1735614640426,-238.75086786,0.0002,3]
[347242365,1735614640435,-500.0,0.0002,3]
[347242366,1735614640444,-1201.43,0.0002,3]
[347242367,1735614640454,-564.43,0.0002,3]
[347242368,1735614640464,-1727.11,0.0002,3]
[347242369,1735614640473,-625.76,0.0002,3]
[347242370,1735614640483,-891.68,0.0002,3]
[347242371,1735614640492,-926.79,0.0002,3]
[347242372,1735614640501,-563.98,0.0002,3]
[347242373,1735614640511,-817.27,0.0002,3]
[347242374,1735614640520,-500.0,0.0002,3]
[347242375,1735614640532,-3037.19,0.0002,3]
[347242376,1735614640541,-500.0,0.0002,3]
[347242377,1735614640551,-1000.0,0.0002,2]
[347242378,1735614640561,-3085.77,0.0002,3]
[347242379,1735614640571,-500.0,0.0002,3]
[347242380,1735614640580,-500.0,0.0002,3]
[347242381,1735614640589,-500.0,0.0002,3]
[347242383,1735614640599,-1299.91,0.0002,3]
[347242385,1735614640608,-1226.09,0.0002,3]
[347242386,1735614640618,-2808.01,0.0002,3]
[347242387,1735614640628,-737.85,0.0002,3]
[347242388,1735614640637,-704.53,0.0002,3]
[347242389,1735614640647,-500.0,0.0002,3]
[347242390,1735614640656,-500.0,0.0002,3]
[347242391,1735614640666,-1195.12,0.0002,3]
[347242392,1735614640675,-1016.58,0.0002,3]
[347242393,1735614640684,-571.138,0.0002002,2]
[347242395,1735614640694,-151.0,0.000201,4]
[347242396,1735614640703,-151.0,0.000202,4]
[347242398,1735614640712,-513.17922841,0.00020237,3]
[347242400,1735614640721,-1039.79,0.00020237,3]
[347242402,1735614640731,-500.0,0.00020238,3]
[347242403,1735614640740,-874.08,0.00020238,3]
[347242404,1735614640749,-837.66,0.00020238,3]
[347242405,1735614640758,-500.0,0.00020238,3]
[347242406,1735614640768,-500.0,0.00020238,3]
[347242407,1735614640779,-500.0,0.00020238,3]
[347242408,1735614640788,-500.0,0.00020238,3]
[347242409,1735614640797,-500.0,0.00020238,3]
[347242410,1735614640808,-6897.56,0.00020239,3]
[347242411,1735614640817,-6897.56,0.00020239,3]
[347242412,1735614640826,-500.0,0.00020239,3]
[347242413,1735614640836,-8028.04,0.0002024,3]
[347242414,1735614640845,-1430.37,0.0002024,3]
[347242415,1735614640853,-500.0,0.0002024,3]
[347242416,1735614640863,-3559.66,0.00020241,3]
[347242417,1735614640872,-500.0,0.00020273,3]
[347242418,1735614640881,-500.0,0.00020273,3]
[347242419,1735614640890,-1090.11,0.00020273,3]
[347242420,1735614640900,-500.0,0.00020273,3]
[347242421,1735614640910,-500.0,0.00020273,3]
[347242422,1735614640919,-829.16,0.00020273,3]
[347242423,1735614640929,-967.92,0.00020273,3]
[347242424,1735614640938,-500.0,0.00020273,3]
[347242425,1735614640948,-500.0,0.00020273,3]
[347242426,1735614640957,-561.41,0.00020273,3]
[347242427,1735614640966,-792.16,0.00020273,3]
[347242428,1735614640976,-500.0,0.00020273,3]
[347242429,1735614640985,-1201.43,0.00020273,3]
[347242430,1735614640994,-564.43,0.00020273,3]
[347242431,1735614641003,-1727.11,0.00020273,3]
[347242432,1735614641012,-26027.15,0.00020273,3]
[347242433,1735614641021,-625.76,0.00020273,3]
[347242434,1735614641032,-891.68,0.00020273,3]
[347242435,1735614641043,-500.0,0.00020273,3]
[347242436,1735614641052,-926.79,0.00020273,3]
[347242437,1735614641061,-563.98,0.00020273,3]
[347242438,1735614641071,-817.27,0.00020273,3]
[347242439,1735614641080,-500.0,0.00020273,3]
[347242440,1735614641091,-3037.19,0.00020273,3]
[347242441,1735614641104,-500.0,0.00020273,3]
[347242442,1735614641113,-1075.66504086,0.00020273,2]
[347242443,1735614641123,-3085.77,0.00020273,3]
[347242444,1735614641132,-500.0,0.00020273,3]
[347242445,1735614641142,-500.0,0.00020273,3]
[347242446,1735614641151,-500.0,0.00020273,3]
[347242447,1735614641160,-504.99874656,0.00020273,2]
[347242448,1735614641170,-1299.91,0.00020273,3]
[347242449,1735614641180,-1226.09,0.00020273,3]
[347242450,1735614641190,-2808.01,0.00020273,3]
[347242451,1735614641199,-737.85,0.00020273,3]
[347242452,1735614641208,-704.53,0.00020273,3]
[347242453,1735614641217,-500.0,0.00020273,3]
[347242454,1735614641227,-500.0,0.00020273,3]
[347242455,1735614641236,-1195.12,0.00020273,3]
[347242456,1735614641246,-1016.58,0.00020273,3]
[347242457,1735614641256,-151.0,0.000203,4]
[347242458,1735614641265,-151.0,0.000203,4]
[347242459,1735614641275,-151.0,0.000204,4]
[347242460,1735614641285,-151.0,0.000204,4]
[347242461,1735614641295,-159.65204354,0.00020423,2]
[347242462,1735614641304,-181.388798,0.00020447,2]
[347242463,1735614641314,-150.0,0.000205,2]
[347242464,1735614641324,-151.0,0.000205,3]
[347242465,1735614641333,-151.0,0.000205,3]
[347242466,1735614641342,-500.0,0.00020512,3]
[347242467,1735614641352,-874.08,0.00020512,3]
[347242468,1735614641361,-837.66,0.00020512,3]
[347242469,1735614641371,-508.85911388,0.00020512,3]
[347242470,1735614641380,-6897.56,0.00020512,3]
[347242471,1735614641389,-500.0,0.00020512,3]
[347242472,1735614641398,-503.44053095,0.00020512,3]
[347242473,1735614641408,-500.0,0.00020512,3]
[347242474,1735614641418,-500.0,0.00020512,3]
[347242475,1735614641438,-6897.56,0.00020513,3]
[347242476,1735614641456,-505.22255396,0.00020513,3]
[347242477,1735614641466,-8028.04,0.00020514,3]
[347242478,1735614641476,-1430.37,0.00020514,3]
[347242479,1735614641485,-190.29821304,0.00020514,3]
[347242480,1735614641495,-3559.66,0.00020515,3]
[347242481,1735614641504,-6897.56,0.00020516,3]
[347242482,1735614641514,-165.448731,0.00020521,2]
[347242483,1735614641524,-160.0,0.00020533,5]
[347242484,1735614641534,-500.0,0.00020547,3]
[347242485,1735614641544,-613.60852441,0.00020547,3]
[347242486,1735614641554,-1090.11,0.00020547,3]
[347242487,1735614641564,-500.0,0.00020547,3]
[347242488,1735614641574,-500.0,0.00020547,3]
[347242489,1735614641583,-829.16,0.00020547,3]
[347242490,1735614641593,-967.92,0.00020547,3]
[347242491,1735614641602,-500.0,0.00020547,3]
[347242492,1735614641612,-500.0,0.00020547,3]
[347242493,1735614641621,-561.41,0.00020547,3]
[347242494,1735614641631,-792.16,0.00020547,3]
[347242495,1735614641640,-500.0,0.00020547,3]
[347242496,1735614641650,-1201.43,0.00020547,3]
[347242497,1735614641659,-564.43,0.00020547,3]
[347242498,1735614641669,-1727.11,0.00020547,3]
[347242499,1735614641678,-26027.15,0.00020547,3]
[347242500,1735614641688,-625.76,0.00020547,3]
[347242501,1735614641697,-891.68,0.00020547,3]
[347242502,1735614641707,-500.0,0.00020547,3]
[347242503,1735614641716,-926.79,0.00020547,3]
[347242504,1735614641725,-563.98,0.00020547,3]
[347242505,1735614641735,-817.27,0.00020547,3]
[347242506,1735614641744,-619.15539093,0.00020547,3]
[347242507,1735614641754,-3037.19,0.00020547,3]
[347242508,1735614641764,-500.0,0.00020547,3]
[347242509,1735614641774,-3085.77,0.00020547,3]
[347242510,1735614641783,-500.0,0.00020547,3]
[347242511,1735614641792,-340.3865041,0.00020547,3]
[347242512,1735614641801,-500.0,0.00020547,3]
[347242513,1735614641811,-1299.91,0.00020547,3]
[347242514,1735614641821,-1226.09,0.00020547,3]
[347242515,1735614641831,-2808.01,0.00020547,3]
[347242516,1735614641840,-737.85,0.00020547,3]
[347242517,1735614641928,-704.53,0.00020547,3]
[347242518,1735614641938,-500.0,0.00020547,3]
[347242519,1735614641947,-500.0,0.00020547,3]
[347242520,1735614641957,-1195.12,0.00020547,3]
[347242521,1735614641967,-1016.58,0.00020547,3]
[347242522,1735614641976,-151.0,0.000206,4]
[347242523,1735614641986,-151.0,0.000206,3]
[347242524,1735614641995,-394.0,0.0002067,2]
[347242525,1735614642005,-151.0,0.000207,4]
[347242526,1735614642014,-151.0,0.000207,3]
[347242527,1735614642023,-8526.76426415,0.00020724,2]
[347242528,1735614642032,-165.448731,0.00020776,2]
[347242529,1735614642042,-500.0,0.00020786,3]
[347242530,1735614642051,-874.08,0.00020786,3]
[347242531,1735614642060,-837.66,0.00020786,3]
[347242532,1735614642069,-500.0,0.00020786,3]
[347242533,1735614642079,-165.89628753,0.00020786,3]
[347242534,1735614642089,-500.0,0.00020786,3]
[347242535,1735614642105,-6897.56,0.00020787,3]
[347242536,1735614642114,-8028.04,0.00020788,3]
[347242537,1735614642124,-3559.66,0.00020789,3]
[347242538,1735614642134,-6897.56,0.0002079,3]
[347242539,1735614642144,-151.0,0.000208,4]
[347242540,1735614642153,-151.0,0.000208,4]
[347242541,1735614642163,-500.0,0.00020821,3]
[347242542,1735614642174,-1090.11,0.00020821,3]
[347242543,1735614642184,-500.0,0.00020821,3]
[347242544,1735614642194,-500.0,0.00020821,3]
[347242545,1735614642203,-829.16,0.00020821,3]
[347242546,1735614642212,-967.92,0.00020821,3]
[347242547,1735614642222,-500.0,0.00020821,3]
[347242548,1735614642231,-500.0,0.00020821,3]
[347242549,1735614642240,-561.41,0.00020821,3]
[347242550,1735614642250,-792.16,0.00020821,3]
[347242551,1735614642260,-599.90330739,0.00020821,3]
[347242552,1735614642270,-1201.43,0.00020821,3]
[347242553,1735614642280,-564.43,0.00020821,3]
[347242554,1735614642290,-1727.11,0.00020821,3]
[347242555,1735614642299,-26027.15,0.00020821,3]
[347242556,1735614642309,-625.76,0.00020821,3]
[347242557,1735614642318,-891.68,0.00020821,3]
[347242558,1735614642328,-500.0,0.00020821,3]
[347242559,1735614642337,-926.79,0.00020821,3]
[347242560,1735614642347,-563.98,0.00020821,3]
[347242561,1735614642356,-817.27,0.00020821,3]
[347242562,1735614642366,-3037.19,0.00020821,3]
[347242563,1735614642375,-500.0,0.00020821,3]
[347242564,1735614642384,-3085.77,0.00020821,3]
[347242565,1735614642393,-151.0,0.00020821,2]
[347242566,1735614642403,-500.0,0.00020821,3]
[347242567,1735614642412,-500.0,0.00020821,3]
[347242568,1735614642422,-151.0,0.00020821,2]
[347242569,1735614642431,-151.790189,0.00020821,2]
[347242570,1735614642440,-1299.91,0.00020821,3]
[347242571,1735614642450,-151.0,0.00020821,2]
[347242572,1735614642460,-1226.09,0.00020821,3]
[347242573,1735614642470,-2808.01,0.00020821,3]
[347242574,1735614642480,-737.85,0.00020821,3]
[347242575,1735614642489,-151.0,0.00020821,2]
[347242576,1735614642499,-151.0,0.00020821,2]
[347242577,1735614642508,-704.53,0.00020821,3]
[347242578,1735614642518,-500.0,0.00020821,3]
[347242579,1735614642528,-500.0,0.00020821,3]
[347242580,1735614642538,-151.0,0.00020821,2]
[347242581,1735614642548,-1195.12,0.00020821,3]
[347242582,1735614642558,-1016.58,0.00020821,3]
[347242583,1735614642571,-171.3182412,0.00020854,2]
[347242584,1735614642581,-150.83,0.00020875,2]
[347242585,1735614642592,-2144.329,0.00020875,2]
[347242586,1735614642602,-533.476,0.00020875,2]
[347242587,1735614642614,-2352.0,0.00020875,2]
[347242588,1735614642626,-420.0,0.00020899,2]
[347242589,1735614642636,-151.0,0.000209,3]
[347242590,1735614642646,-151.0,0.000209,3]
[347242591,1735614642655,-159.65204354,0.00020981,2]
[347242592,1735614642664,-1200.0,0.00020986,2]
[347242593,1735614642674,-3000.0,0.00021,2]
[347242594,1735614642684,-2187.65118566,0.00021,2]
[347242595,1735614642693,-150.0,0.00021,10]
[347242596,1735614642703,-150.0,0.00021,8]
[347242597,1735614642713,-151.0,0.00021,4]
[347242598,1735614642723,-3000.0,0.0002101,2]
[347242599,1735614642732,-3000.0,0.0002102,2]
[347242600,1735614642742,-3000.0,0.0002103,2]
[347242601,1735614642752,-165.448731,0.00021032,2]
[347242602,1735614642762,-3000.0,0.0002104,2]
[347242603,1735614642772,-151.0,0.00021048,2]
[347242604,1735614642781,-7197.45,0.00021048,3]
[347242605,1735614642791,-7197.45,0.00021048,3]
[347242606,1735614642801,-7197.45,0.00021048,3]
[347242607,1735614642811,-7197.45,0.00021048,3]
[347242608,1735614642821,-7197.45,0.00021048,3]
[347242609,1735614642831,-7197.45,0.00021048,3]
[347242610,1735614642842,-7197.45,0.00021048,3]
[347242611,1735614642852,-7197.45,0.00021048,3]
[347242612,1735614642861,-7197.45,0.00021048,3]
[347242613,1735614642871,-7197.45,0.00021048,3]
[347242614,1735614642881,-7197.45,0.00021048,3]
[347242615,1735614642891,-151.0,0.00021048,2]
[347242616,1735614642900,-151.0,0.00021048,2]
[347242617,1735614642909,-151.0,0.00021048,2]
[347242618,1735614642919,-223.899545,0.00021048,2]
[347242619,1735614642928,-151.0,0.00021048,2]
[347242620,1735614642938,-151.0,0.00021048,2]
[347242621,1735614642948,-151.0,0.00021048,2]
[347242622,1735614642957,-3000.0,0.0002105,2]
[347242623,1735614642967,-3000.0,0.0002106,2]
[347242624,1735614642976,-500.0,0.0002106,3]
[347242625,1735614642986,-874.08,0.0002106,3]
[347242626,1735614642996,-837.66,0.0002106,3]
[347242627,1735614643005,-500.0,0.0002106,3]
[347242628,1735614643014,-593.97377556,0.00021061,2]
[347242629,1735614643025,-151.0,0.00021062,2]
[347242630,1735614643033,-151.0,0.00021062,2]
[347242631,1735614643043,-8028.04,0.00021062,3]
[347242632,1735614643052,-151.580259,0.00021062,2]
[347242633,1735614643062,-151.0,0.00021062,2]
[347242634,1735614643071,-151.0,0.00021062,2]
[347242635,1735614643081,-151.0,0.00021062,2]
[347242636,1735614643091,-151.0,0.00021063,2]
[347242637,1735614643103,-151.0,0.00021063,2]
[347242638,1735614643115,-151.0,0.00021063,2]
[347242639,1735614643125,-285.228416,0.00021063,2]
[347242640,1735614643134,-151.0,0.00021063,2]
[347242641,1735614643145,-151.0,0.00021063,2]
[347242642,1735614643154,-179.636665,0.00021063,2]
[347242643,1735614643163,-151.0,0.00021063,2]
[347242644,1735614643173,-153.10293,0.00021063,2]
[347242645,1735614643183,-152.590825,0.00021063,2]
[347242646,1735614643193,-510.910617,0.00021063,2]
[347242647,1735614643203,-510.910617,0.00021063,2]
[347242648,1735614643212,-3559.66,0.00021063,3]
[347242651,1735614643221,-151.0,0.00021063,2]
[347242654,1735614643231,-151.0,0.00021063,2]
[347242655,1735614643241,-151.73812411,0.00021064,2]
[347242657,1735614643250,-1039.79,0.00021064,3]
[347242659,1735614643259,-1039.79,0.00021064,3]
[347242662,1735614643271,-1039.79,0.00021064,3]
[347242665,1735614643282,-1039.79,0.00021064,3]
[347242668,1735614643291,-1039.79,0.00021064,3]
[347242670,1735614643301,-1039.79,0.00021064,3]
[347242671,1735614643310,-1039.79,0.00021064,3]
[347242672,1735614643320,-1039.79,0.00021064,3]
[347242673,1735614643329,-1039.79,0.00021064,3]
[347242674,1735614643339,-1039.79,0.00021064,3]
[347242675,1735614643348,-1039.79,0.00021064,3]
[347242676,1735614643357,-1039.79,0.00021064,3]
[347242677,1735614643366,-1039.79,0.00021064,3]
[347242678,1735614643376,-1039.79,0.00021064,3]
[347242679,1735614643385,-1039.79,0.00021064,3]
[347242680,1735614643395,-1039.79,0.00021064,3]
[347242681,1735614643404,-1039.79,0.00021064,3]
[347242682,1735614643413,-1039.79,0.00021064,3]
[347242683,1735614643422,-1039.79,0.00021064,3]
[347242684,1735614643432,-1039.79,0.00021064,3]
[347242685,1735614643441,-1039.79,0.00021064,3]
[347242686,1735614643451,-1039.79,0.00021064,3]
[347242687,1735614643460,-1039.80810354,0.00021064,3]
[347242688,1735614643470,-151.0,0.00021065,2]
[347242689,1735614643479,-151.0,0.00021065,2]
[347242690,1735614643489,-155.205389,0.00021065,2]
[347242691,1735614643499,-150.21,0.00021065,10]
[347242692,1735614643508,-150.64646544,0.00021065,2]
[347242693,1735614643517,-150.77298769,0.00021065,10]
[347242694,1735614643528,-150.21,0.00021065,10]
[347242696,1735614643538,-150.21,0.00021065,10]
[347242698,1735614643548,-151.63164511,0.00021065,10]
[347242699,1735614643558,-150.5247728,0.00021065,10]
[347242700,1735614643567,-150.21,0.00021065,10]
[347242701,1735614643577,-283.66828654,0.00021065,10]
[347242702,1735614643587,-150.26,0.00021065,10]
[347242703,1735614643597,-150.21,0.00021065,10]
[347242704,1735614643607,-150.21,0.00021065,10]
[347242705,1735614643616,-150.21,0.00021065,2]
[347242706,1735614643626,-151.8275265,0.00021065,10]
[347242707,1735614643635,-151.56988917,0.00021065,10]
[347242708,1735614643645,-3000.0,0.0002107,2]
[347242709,1735614643655,-155.80748749,0.00021073,2]
[347242710,1735614643664,-500.0,0.00021073,2]
[347242711,1735614643674,-3000.0,0.0002108,2]
[347242712,1735614643684,-5496.63662323,0.00021081,2]
[347242713,1735614643693,-46504.84740042,0.00021081,2]
[347242714,1735614643702,-510.910617,0.00021081,2]
[347242715,1735614643712,-510.910617,0.00021081,2]
[347242716,1735614643721,-510.910617,0.00021081,2]
[347242717,1735614643731,-510.910617,0.00021081,2]
[347242718,1735614643740,-510.910617,0.00021081,2]
[347242719,1735614643750,-510.910617,0.00021081,2]
[347242720,1735614643759,-510.910617,0.00021081,2]
[347242721,1735614643769,-510.910617,0.00021081,2]
[347242722,1735614643779,-510.910617,0.00021081,2]
[347242723,1735614643788,-510.910617,0.00021081,2]
[347242724,1735614643797,-510.910617,0.00021081,2]
[347242725,1735614643806,-510.910617,0.00021081,2]
[347242726,1735614643816,-510.910617,0.00021081,2]
[347242727,1735614643825,-510.910617,0.00021081,2]
[347242728,1735614643835,-510.910617,0.00021081,2]
[347242729,1735614643844,-510.910617,0.00021081,2]
[347242736,1735614643925,-510.910617,0.00021081,2]
[347242737,1735614643935,-510.910608,0.00021081,2]
[347242738,1735614643945,-151.0,0.00021081,2]
[347242739,1735614643955,-151.0,0.00021081,2]
[347242740,1735614643965,-151.0,0.00021081,2]
[347242741,1735614643974,-247.473396,0.00021081,2]
[347242742,1735614643984,-970.0,0.00021081,2]
[347242743,1735614643993,-970.0,0.00021081,2]
[347242744,1735614644003,-970.0,0.00021081,2]
[347242745,1735614644012,-970.0,0.00021081,2]
[347242746,1735614644021,-970.0,0.00021081,2]
[347242747,1735614644033,-970.0,0.00021081,2]
[347242748,1735614644042,-970.0,0.00021081,2]
[347242749,1735614644051,-252.082746,0.00021081,2]
[347242750,1735614644061,-151.0,0.00021081,2]
[347242751,1735614644070,-151.0,0.00021081,2]
[347242752,1735614644079,-151.0,0.00021081,2]
[347242753,1735614644089,-151.0,0.00021081,2]
[347242754,1735614644101,-151.0,0.00021081,2]
[347242755,1735614644112,-151.0,0.00021081,2]
[347242756,1735614644121,-151.0,0.00021081,2]
[347242757,1735614644131,-151.0,0.00021081,2]
[347242758,1735614644140,-151.0,0.00021081,2]
[347242759,1735614644150,-151.0,0.00021081,2]
[347242760,1735614644159,-151.0,0.00021081,2]
[347242761,1735614644169,-151.0,0.00021081,2]
[347242762,1735614644178,-151.0,0.00021081,2]
[347242763,1735614644188,-183.483122,0.00021081,2]
[347242764,1735614644197,-151.0,0.00021081,2]
[347242765,1735614644207,-152.235635,0.00021081,2]
[347242766,1735614644216,-151.0,0.00021081,2]
[347242767,1735614644226,-151.0,0.00021081,2]
[347242768,1735614644235,-151.0,0.00021081,2]
[347242769,1735614644244,-151.0,0.00021081,2]
[347242770,1735614644254,-151.0,0.00021081,2]
[347242771,1735614644263,-151.0,0.00021081,2]
[347242772,1735614644273,-151.0,0.00021081,2]
[347242773,1735614644283,-151.0,0.00021081,2]
[347242774,1735614644292,-151.0,0.00021081,2]
[347242775,1735614644301,-151.0,0.00021081,2]
[347242776,1735614644311,-151.0,0.00021081,2]
[347242777,1735614644320,-151.0,0.00021081,2]
[347242778,1735614644329,-151.0,0.00021081,2]
[347242779,1735614644339,-289.530898,0.00021081,2]
[347242780,1735614644348,-153.830187,0.00021081,2]
[347242781,1735614644357,-251.637952,0.00021081,2]
[347242782,1735614644366,-151.0,0.00021081,2]
[347242783,1735614644375,-151.0,0.00021081,2]
[347242784,1735614644384,-151.0,0.00021081,2]
[347242785,1735614644394,-151.0,0.00021081,2]
[347242786,1735614644403,-151.0,0.00021081,2]
[347242787,1735614644413,-151.0,0.00021081,2]
[347242788,1735614644422,-151.0,0.00021081,2]
[347242789,1735614644431,-151.0,0.00021081,2]
[347242790,1735614644441,-151.0,0.00021081,2]
[347242791,1735614644450,-260.529385,0.00021081,2]
[347242792,1735614644460,-159.631956,0.00021081,2]
[347242793,1735614644469,-315324.78640846,0.00021081,10]
[347242794,1735614644499,-500.0,0.00019452,3]
[347242795,1735614644509,-307.3147242,0.00019966,3]
[347242796,1735614644520,-192.6852758,0.00019966,3]
[347242797,1735614644531,-2134.41639484,0.00021081,10]
[347242798,1735614644543,-14991.46111334,0.00021081,10]
[347242799,1735614644554,-2687.0048329,0.00021081,10]
[347242800,1735614644565,-13333.4865482,0.00021081,10]
[347242801,1735614644710,-500.0,0.00019726,3]
[347242802,1735614644720,-67.648933,0.0002,3]
[347242803,1735614644790,-432.351067,0.0002,3]
[347242804,1735614644800,-500.0,0.0002024,3]
[347242805,1735614644809,-500.0,0.00020273,3]
[347242806,1735614644819,-507.67376025,0.00020514,3]
[347242807,1735614644828,-500.0,0.00020547,3]
[347242808,1735614644837,-500.0,0.00020821,3]
[347242809,1735614644846,-778934.65891385,0.00021081,10]
[347242810,1735614644970,-940.90515655,0.00021081,10]
[347242836,1735615646622,-163.249918,0.00013833,2]
[347242837,1735615646648,-163.249918,0.00013973,2]
[347242838,1735615646676,-17.79653158,0.00019078,2]
[347242842,1735615755114,-4843.17807965,0.0001829,2]
[347242843,1735615757162,-1814.17439032,0.0001829,2]
[347242844,1735615798812,-53.89626973,0.0001829,2]
[347242846,1735615798837,-165.12546842,0.00018887,2]
[347242847,1735615798862,-37.74853429,0.00019078,2]
[347242849,1735615798892,-127.37693413,0.00019078,2]
[347242851,1735615798917,-272.0,0.00019177,2]
[347242852,1735615798942,-500.0,0.00019178,2]
[347242853,1735615798969,-500.0,0.00019178,2]
[347242854,1735615798994,-171.87254046,0.00019178,2]
[347242866,1735615832942,-154.5569986,0.00018986,2]
[347242867,1735615832951,-328.12745954,0.00019178,2]
[347242868,1735615832960,-500.0,0.00019178,2]
[347242869,1735615832970,-772.17,0.00019178,2]
[347242870,1735615832980,-587.32,0.00019178,2]
[347242871,1735615832989,-561.11,0.00019178,2]